[Event "Titled Tuesday Blitz March 01 Early 2022"]
[White "Kanyamarala, Tarun"]
[Black "Viani Antonio Dcunha"]
[WhiteFideId "45004714"]
[BlackFideId "5027330"]
[WhiteElo "2144"]
[BlackElo "2366"]
[Result "1-0"]
[Round "06"]
[TimeControl "180+1"]
[Date "2022.03.01"]
[WhiteClock "0:00:05"]
[BlackClock "0:00:10"]

1. d4 {[%clk 0:03:00]}  Nf6 {[%clk 0:02:59]} 2. c4 {[%clk 0:03:01]}  g6 {[%clk 0:03:00]} 3. Nc3 {[%clk 0:03:01]}  Bg7 {[%clk 0:03:00]} 4. e4 {[%clk 0:03:01]}  O-O {[%clk 0:03:01]} 5. Nf3 {[%clk 0:03:00]}  d6 {[%clk 0:03:02]} 6. Be2 {[%clk 0:02:58]}  e5 {[%clk 0:03:02]} 7. d5 {[%clk 0:02:57]}  a5 {[%clk 0:03:01]} 8. Bg5 {[%clk 0:02:55]}  Na6 {[%clk 0:02:58]} 9. Nd2 {[%clk 0:02:51]}  Nc5 {[%clk 0:02:55]} 10. g4 {[%clk 0:02:45]}  c6 {[%clk 0:02:53]} 11. h4 {[%clk 0:02:40]}  cxd5 {[%clk 0:02:50]} 12. cxd5 {[%clk 0:02:35]}  Bd7 {[%clk 0:02:44]} 13. h5 {[%clk 0:02:07]}  b5 {[%clk 0:02:32]} 14. h6 {[%clk 0:01:49]}  Bh8 {[%clk 0:02:31]} 15. Nxb5 {[%clk 0:01:42]}  Qb6 {[%clk 0:02:21]} 16. a4 {[%clk 0:01:35]}  Nxg4 {[%clk 0:01:23]} 17. Nc4 {[%clk 0:01:17]}  Qb8 {[%clk 0:00:55]} 18. Bxg4 {[%clk 0:01:14]}  Bxb5 {[%clk 0:00:55]} 19. axb5 {[%clk 0:01:13]}  Qxb5 {[%clk 0:00:55]} 20. Qe2 {[%clk 0:01:10]}  f5 {[%clk 0:00:45]} 21. exf5 {[%clk 0:01:07]}  e4 {[%clk 0:00:45]} 22. fxg6 {[%clk 0:00:30]}  Nd3+ {[%clk 0:00:30]} 23. Kf1 {[%clk 0:00:10]}  Rxf2+ {[%clk 0:00:28]} 24. Qxf2 {[%clk 0:00:10]}  Nxf2 {[%clk 0:00:29]} 25. Be6+ {[%clk 0:00:10]}  Kf8 {[%clk 0:00:29]} 26. g7+ {[%clk 0:00:05]}  Bxg7 {[%clk 0:00:29]} 27. hxg7+ {[%clk 0:00:06]}  Kxg7 {[%clk 0:00:30]} 28. Bh6+ {[%clk 0:00:06]}  Kf6 {[%clk 0:00:18]} 29. Kxf2 {[%clk 0:00:06]}  Qxc4 {[%clk 0:00:17]} 30. Raf1 {[%clk 0:00:06]}  Qd3 {[%clk 0:00:12]} 31. Kg2+ {[%clk 0:00:05]}  Ke7 {[%clk 0:00:10]} 32. Rf7+ {[%clk 0:00:04]}  Ke8 {[%clk 0:00:10]} 33. Bf4 {[%clk 0:00:02]}  Qf3+ {[%clk 0:00:08]} 34. Kg1 {[%clk 0:00:02]}  Rc8 {[%clk 0:00:08]} 35. Bh3 {[%clk 0:00:01]}  Rc1+ {[%clk 0:00:07]} 36. Bxc1 {[%clk 0:00:01]}  Qxf7 {[%clk 0:00:07]} 37. Bg2 {[%clk 0:00:01]}  e3 {[%clk 0:00:07]} 38. Bxe3 {[%clk 0:00:01]}  Qe7 {[%clk 0:00:07]} 39. Bf2 {[%clk 0:00:02]}  Qf7 {[%clk 0:00:07]} 40. Rh3 {[%clk 0:00:03]}  Qg6 {[%clk 0:00:07]} 41. Re3+ {[%clk 0:00:04]}  Kd8 {[%clk 0:00:08]} 42. Re6 {[%clk 0:00:04]}  Qb1+ {[%clk 0:00:08]} 43. Kh2 {[%clk 0:00:05]}  Qxb2 {[%clk 0:00:09]} 44. Rxd6+ {[%clk 0:00:05]}  Ke7 {[%clk 0:00:10]} 45. Bg3 {[%clk 0:00:05]}  Qc3 {[%clk 0:00:09]} 46. Re6+ {[%clk 0:00:06]}  Kd7 {[%clk 0:00:10]} 47. Bh3 {[%clk 0:00:06]}  Qd2+ {[%clk 0:00:10]} 48. Re2+ {[%clk 0:00:05]} 1-0


[Site "https://www.chess.com"]

[Event "Titled Tuesday Blitz March 01 Early 2022"]
[White "Kaplan, Ebru"]
[Black "Goryachkina, Aleksandra"]
[WhiteFideId "6315194"]
[BlackFideId "4147103"]
[WhiteElo "1941"]
[BlackElo "2426"]
[Result "0-1"]
[Round "06"]
[TimeControl "180+1"]
[Date "2022.03.01"]
[WhiteClock "0:00:11"]
[BlackClock "0:00:08"]

1. e4 {[%clk 0:03:00]}  c5 {[%clk 0:02:59]} 2. Nf3 {[%clk 0:03:00]}  e6 {[%clk 0:02:58]} 3. b3 {[%clk 0:03:00]}  d5 {[%clk 0:02:56]} 4. Bb5+ {[%clk 0:02:58]}  Bd7 {[%clk 0:02:55]} 5. Bxd7+ {[%clk 0:02:57]}  Nxd7 {[%clk 0:02:51]} 6. exd5 {[%clk 0:02:56]}  exd5 {[%clk 0:02:51]} 7. O-O {[%clk 0:02:56]}  Ngf6 {[%clk 0:02:36]} 8. Re1+ {[%clk 0:02:55]}  Be7 {[%clk 0:02:37]} 9. Qe2 {[%clk 0:02:53]}  Kf8 {[%clk 0:02:07]} 10. Bb2 {[%clk 0:02:42]}  Bd6 {[%clk 0:02:06]} 11. Nc3 {[%clk 0:02:30]}  d4 {[%clk 0:01:54]} 12. Nb5 {[%clk 0:02:21]}  Qb6 {[%clk 0:01:45]} 13. a4 {[%clk 0:02:07]}  a6 {[%clk 0:01:44]} 14. Nxd6 {[%clk 0:01:36]}  Qxd6 {[%clk 0:01:44]} 15. Ba3 {[%clk 0:01:31]}  h6 {[%clk 0:01:28]} 16. Qc4 {[%clk 0:01:24]}  Kg8 {[%clk 0:01:16]} 17. Re2 {[%clk 0:01:17]}  b5 {[%clk 0:00:42]} 18. Qd3 {[%clk 0:01:08]}  b4 {[%clk 0:00:40]} 19. Bb2 {[%clk 0:01:09]}  Nd5 {[%clk 0:00:27]} 20. Rae1 {[%clk 0:01:04]}  g6 {[%clk 0:00:19]} 21. g3 {[%clk 0:00:58]}  Kh7 {[%clk 0:00:18]} 22. c3 {[%clk 0:00:39]}  bxc3 {[%clk 0:00:18]} 23. dxc3 {[%clk 0:00:39]}  Rhb8 {[%clk 0:00:16]} 24. cxd4 {[%clk 0:00:37]}  Nb4 {[%clk 0:00:15]} 25. Qe4 {[%clk 0:00:27]}  Nc6 {[%clk 0:00:14]} 26. dxc5 {[%clk 0:00:20]}  Nxc5 {[%clk 0:00:14]} 27. Qc2 {[%clk 0:00:15]}  Rxb3 {[%clk 0:00:11]} 28. Rd2 {[%clk 0:00:13]}  Qf8 {[%clk 0:00:08]} 29. Qxc5 {[%clk 0:00:11]}  Qxc5 {[%clk 0:00:08]} 0-1


[Site "https://www.chess.com"]

[Event "Titled Tuesday Blitz March 01 Early 2022"]
[White "Kejzar, Petra"]
[Black "Hoffmann, Asa"]
[WhiteFideId "14610213"]
[BlackFideId "2001470"]
[WhiteElo "2006"]
[BlackElo "2117"]
[Result "0-1"]
[Round "06"]
[TimeControl "180+1"]
[Date "2022.03.01"]
[WhiteClock "0:00:03"]
[BlackClock "0:00:54"]

1. e4 {[%clk 0:03:00]}  d6 {[%clk 0:02:59]} 2. d4 {[%clk 0:02:59]}  Nf6 {[%clk 0:02:58]} 3. Nc3 {[%clk 0:02:59]}  c6 {[%clk 0:02:58]} 4. Nf3 {[%clk 0:02:57]}  Bg4 {[%clk 0:02:57]} 5. Be3 {[%clk 0:02:44]}  e6 {[%clk 0:02:57]} 6. Qd2 {[%clk 0:02:43]}  Bxf3 {[%clk 0:02:56]} 7. gxf3 {[%clk 0:02:43]}  d5 {[%clk 0:02:54]} 8. e5 {[%clk 0:02:41]}  Nfd7 {[%clk 0:02:54]} 9. Ne2 {[%clk 0:02:40]}  g6 {[%clk 0:02:52]} 10. Ng3 {[%clk 0:02:35]}  h5 {[%clk 0:02:52]} 11. Bd3 {[%clk 0:02:32]}  c5 {[%clk 0:02:50]} 12. c3 {[%clk 0:02:25]}  Nc6 {[%clk 0:02:49]} 13. O-O-O {[%clk 0:02:22]}  cxd4 {[%clk 0:02:48]} 14. cxd4 {[%clk 0:02:23]}  Bb4 {[%clk 0:02:40]} 15. Qe2 {[%clk 0:02:06]}  Qa5 {[%clk 0:02:39]} 16. Kb1 {[%clk 0:02:05]}  O-O-O {[%clk 0:02:36]} 17. Rc1 {[%clk 0:02:03]}  Kb8 {[%clk 0:02:36]} 18. Rhd1 {[%clk 0:01:59]}  Rc8 {[%clk 0:02:36]} 19. Bd2 {[%clk 0:01:58]}  Nb6 {[%clk 0:02:35]} 20. Bc3 {[%clk 0:01:46]}  Bxc3 {[%clk 0:02:30]} 21. bxc3 {[%clk 0:01:43]}  Na4 {[%clk 0:02:29]} 22. Qd2 {[%clk 0:01:24]}  a6 {[%clk 0:02:21]} 23. Ne2 {[%clk 0:01:23]}  Na7 {[%clk 0:02:16]} 24. Ka1 {[%clk 0:01:21]}  Rc6 {[%clk 0:02:15]} 25. c4 {[%clk 0:00:47]}  Qxd2 {[%clk 0:02:08]} 26. Rxd2 {[%clk 0:00:48]}  dxc4 {[%clk 0:02:08]} 27. Rxc4 {[%clk 0:00:43]}  Rhc8 {[%clk 0:02:04]} 28. Rdc2 {[%clk 0:00:38]}  b5 {[%clk 0:02:02]} 29. Rxc6 {[%clk 0:00:35]}  Rxc6 {[%clk 0:02:01]} 30. Nf4 {[%clk 0:00:28]}  Rxc2 {[%clk 0:01:55]} 31. Bxc2 {[%clk 0:00:28]}  Nb6 {[%clk 0:01:52]} 32. Be4 {[%clk 0:00:22]}  Kc7 {[%clk 0:01:51]} 33. Nh3 {[%clk 0:00:22]}  Kd8 {[%clk 0:01:45]} 34. Ng5 {[%clk 0:00:22]}  Ke7 {[%clk 0:01:45]} 35. Kb2 {[%clk 0:00:22]}  a5 {[%clk 0:01:40]} 36. a3 {[%clk 0:00:20]}  Nac8 {[%clk 0:01:31]} 37. Kc3 {[%clk 0:00:18]}  f6 {[%clk 0:01:24]} 38. exf6+ {[%clk 0:00:14]}  Kxf6 {[%clk 0:01:24]} 39. h4 {[%clk 0:00:11]}  Nd6 {[%clk 0:01:23]} 40. Bc6 {[%clk 0:00:10]}  Nd5+ {[%clk 0:01:18]} 41. Bxd5 {[%clk 0:00:10]}  exd5 {[%clk 0:01:18]} 42. Nh7+ {[%clk 0:00:08]}  Ke7 {[%clk 0:01:16]} 43. Ng5 {[%clk 0:00:08]}  Nf5 {[%clk 0:01:15]} 44. Nh3 {[%clk 0:00:06]}  Nxh4 {[%clk 0:01:14]} 45. Nf4 {[%clk 0:00:06]}  Kd6 {[%clk 0:01:12]} 46. Kd3 {[%clk 0:00:05]}  b4 {[%clk 0:01:10]} 47. axb4 {[%clk 0:00:04]}  axb4 {[%clk 0:01:10]} 48. Kc2 {[%clk 0:00:04]}  Nxf3 {[%clk 0:01:08]} 49. Nxg6 {[%clk 0:00:05]}  Nxd4+ {[%clk 0:01:08]} 50. Kb2 {[%clk 0:00:04]}  Nf5 {[%clk 0:01:06]} 51. f4 {[%clk 0:00:04]}  h4 {[%clk 0:01:05]} 52. Ne5 {[%clk 0:00:02]}  h3 {[%clk 0:01:02]} 53. Nf3 {[%clk 0:00:03]}  Kc5 {[%clk 0:01:01]} 54. Nh2 {[%clk 0:00:02]}  Kc4 {[%clk 0:01:00]} 55. Ng4 {[%clk 0:00:02]}  d4 {[%clk 0:00:59]} 56. Ne5+ {[%clk 0:00:02]}  Kd5 {[%clk 0:00:59]} 57. Ng4 {[%clk 0:00:02]}  Ke4 {[%clk 0:00:58]} 58. Nf2+ {[%clk 0:00:02]}  Kxf4 {[%clk 0:00:58]} 59. Nxh3+ {[%clk 0:00:03]}  Ke3 {[%clk 0:00:58]} 60. Ng5 {[%clk 0:00:03]}  d3 {[%clk 0:00:57]} 61. Ne6 {[%clk 0:00:03]}  d2 {[%clk 0:00:56]} 62. Nc5 {[%clk 0:00:03]}  d1=Q {[%clk 0:00:54]} 0-1


[Site "https://www.chess.com"]

[Event "Titled Tuesday Blitz March 01 Early 2022"]
[White "Kett, Tim"]
[Black "Mikhailov, Viacheslav"]
[WhiteFideId "1801210"]
[BlackFideId "4187369"]
[WhiteElo "2098"]
[BlackElo "2381"]
[Result "0-1"]
[Round "06"]
[TimeControl "180+1"]
[Date "2022.03.01"]
[WhiteClock "0:01:44"]
[BlackClock "0:02:08"]

1. e4 {[%clk 0:02:43]}  d6 {[%clk 0:02:59]} 2. d4 {[%clk 0:02:43]}  Nf6 {[%clk 0:03:00]} 3. Nc3 {[%clk 0:02:43]}  g6 {[%clk 0:03:00]} 4. Be3 {[%clk 0:02:42]}  Bg7 {[%clk 0:03:00]} 5. Qd2 {[%clk 0:02:42]}  O-O {[%clk 0:03:01]} 6. O-O-O {[%clk 0:02:43]}  c6 {[%clk 0:03:01]} 7. Kb1 {[%clk 0:02:42]}  b5 {[%clk 0:03:01]} 8. Bd3 {[%clk 0:02:41]}  a5 {[%clk 0:03:01]} 9. h4 {[%clk 0:02:40]}  h5 {[%clk 0:02:59]} 10. f4 {[%clk 0:02:39]}  Ng4 {[%clk 0:02:58]} 11. e5 {[%clk 0:02:37]}  d5 {[%clk 0:02:47]} 12. Nf3 {[%clk 0:02:35]}  b4 {[%clk 0:02:39]} 13. Ne2 {[%clk 0:02:33]}  a4 {[%clk 0:02:33]} 14. f5 {[%clk 0:02:33]}  b3 {[%clk 0:02:30]} 15. fxg6 {[%clk 0:02:26]}  fxg6 {[%clk 0:02:27]} 16. Bxg6 {[%clk 0:02:23]}  bxa2+ {[%clk 0:02:27]} 17. Kxa2 {[%clk 0:02:21]}  Qa5 {[%clk 0:02:15]} 18. c3 {[%clk 0:02:11]}  Qb5 {[%clk 0:02:12]} 19. Bc2 {[%clk 0:01:59]}  Bf5 {[%clk 0:02:12]} 20. Ng3 {[%clk 0:01:52]}  Bxc2 {[%clk 0:02:10]} 21. Nxh5 {[%clk 0:01:45]}  Qb3+ {[%clk 0:02:08]} 22. Ka1 {[%clk 0:01:44]}  a3 {[%clk 0:02:08]} 0-1


[Site "https://www.chess.com"]

[Event "Titled Tuesday Blitz March 01 Early 2022"]
[White "Kirillov, Dmitry"]
[Black "Vusatiuk, Vladimir"]
[WhiteFideId "34180572"]
[BlackFideId "14118610"]
[WhiteElo "2076"]
[BlackElo "2157"]
[Result "1-0"]
[Round "06"]
[TimeControl "180+1"]
[Date "2022.03.01"]
[WhiteClock "0:00:50"]
[BlackClock "0:00:05"]

1. e4 {[%clk 0:02:59]}  Nc6 {[%clk 0:02:59]} 2. d4 {[%clk 0:02:58]}  d5 {[%clk 0:02:59]} 3. e5 {[%clk 0:02:46]}  Bf5 {[%clk 0:02:58]} 4. Nf3 {[%clk 0:02:44]}  e6 {[%clk 0:02:43]} 5. c3 {[%clk 0:02:41]}  h6 {[%clk 0:02:29]} 6. Nbd2 {[%clk 0:02:37]}  Nge7 {[%clk 0:02:28]} 7. Be2 {[%clk 0:02:28]}  Qd7 {[%clk 0:02:17]} 8. O-O {[%clk 0:02:26]}  g5 {[%clk 0:01:29]} 9. Nb3 {[%clk 0:02:19]}  Ng6 {[%clk 0:01:24]} 10. a4 {[%clk 0:02:02]}  Be7 {[%clk 0:01:14]} 11. Ne1 {[%clk 0:02:00]}  Nf4 {[%clk 0:01:05]} 12. Bxf4 {[%clk 0:01:58]}  gxf4 {[%clk 0:01:06]} 13. Bd3 {[%clk 0:01:56]}  Bxd3 {[%clk 0:01:04]} 14. Nxd3 {[%clk 0:01:57]}  O-O-O {[%clk 0:00:46]} 15. Nxf4 {[%clk 0:01:55]}  Rdg8 {[%clk 0:00:46]} 16. Nh5 {[%clk 0:01:52]}  Qe8 {[%clk 0:00:36]} 17. g3 {[%clk 0:01:48]}  Nb8 {[%clk 0:00:27]} 18. Qf3 {[%clk 0:01:37]}  Nd7 {[%clk 0:00:26]} 19. c4 {[%clk 0:01:24]}  Nb6 {[%clk 0:00:22]} 20. c5 {[%clk 0:01:21]}  Nc4 {[%clk 0:00:21]} 21. Qe2 {[%clk 0:01:17]}  Kb8 {[%clk 0:00:17]} 22. Nd2 {[%clk 0:01:15]}  Nxb2 {[%clk 0:00:14]} 23. Rfb1 {[%clk 0:01:13]}  Nc4 {[%clk 0:00:10]} 24. Nxc4 {[%clk 0:01:13]}  dxc4 {[%clk 0:00:10]} 25. Qxc4 {[%clk 0:01:12]}  Qc6 {[%clk 0:00:05]} 26. Rb5 {[%clk 0:01:08]}  a6 {[%clk 0:00:05]} 27. Rb3 {[%clk 0:01:06]}  Ka8 {[%clk 0:00:06]} 28. Rab1 {[%clk 0:01:05]}  Rg5 {[%clk 0:00:05]} 29. Nf4 {[%clk 0:01:02]}  Rd8 {[%clk 0:00:05]} 30. Rxb7 {[%clk 0:00:54]}  Qxb7 {[%clk 0:00:06]} 31. Rxb7 {[%clk 0:00:55]}  Kxb7 {[%clk 0:00:07]} 32. c6+ {[%clk 0:00:55]}  Ka7 {[%clk 0:00:06]} 33. Nd3 {[%clk 0:00:53]}  Rb8 {[%clk 0:00:05]} 34. Nc5 {[%clk 0:00:51]}  Rg4 {[%clk 0:00:05]} 35. Qxa6# {[%clk 0:00:50]} 1-0


[Site "https://www.chess.com"]

[Event "Titled Tuesday Blitz March 01 Early 2022"]
[White "Kosakowski, Jakub"]
[Black "Coto Mederos, Michel"]
[WhiteFideId "1185080"]
[BlackFideId "3508528"]
[WhiteElo "2476"]
[BlackElo "2427"]
[Result "1/2-1/2"]
[Round "06"]
[TimeControl "180+1"]
[Date "2022.03.01"]
[WhiteClock "0:00:05"]
[BlackClock "0:00:05"]

1. e4 {[%clk 0:02:57]}  e5 {[%clk 0:02:59]} 2. Nf3 {[%clk 0:02:57]}  Nc6 {[%clk 0:03:00]} 3. Bc4 {[%clk 0:02:56]}  Bc5 {[%clk 0:02:59]} 4. O-O {[%clk 0:02:56]}  Nf6 {[%clk 0:02:58]} 5. d3 {[%clk 0:02:55]}  d6 {[%clk 0:02:57]} 6. c3 {[%clk 0:02:56]}  a6 {[%clk 0:02:57]} 7. Bb3 {[%clk 0:02:55]}  Ba7 {[%clk 0:02:56]} 8. Nbd2 {[%clk 0:02:54]}  h6 {[%clk 0:02:56]} 9. Re1 {[%clk 0:02:52]}  O-O {[%clk 0:02:47]} 10. h3 {[%clk 0:02:52]}  Nh5 {[%clk 0:02:45]} 11. d4 {[%clk 0:02:33]}  Qf6 {[%clk 0:02:38]} 12. Nxe5 {[%clk 0:02:09]}  dxe5 {[%clk 0:02:05]} 13. Qxh5 {[%clk 0:02:09]}  exd4 {[%clk 0:02:05]} 14. Nf3 {[%clk 0:01:58]}  dxc3 {[%clk 0:01:57]} 15. bxc3 {[%clk 0:01:59]}  Qxc3 {[%clk 0:01:27]} 16. Bxh6 {[%clk 0:01:07]}  gxh6 {[%clk 0:01:19]} 17. e5 {[%clk 0:01:07]}  Qd3 {[%clk 0:00:59]} 18. Rad1 {[%clk 0:00:23]}  Qh7 {[%clk 0:00:51]} 19. e6 {[%clk 0:00:17]}  fxe6 {[%clk 0:00:34]} 20. Bxe6+ {[%clk 0:00:17]}  Kh8 {[%clk 0:00:34]} 21. Bxc8 {[%clk 0:00:17]}  Raxc8 {[%clk 0:00:35]} 22. Re6 {[%clk 0:00:17]}  Rf5 {[%clk 0:00:12]} 23. Qh4 {[%clk 0:00:15]}  h5 {[%clk 0:00:11]} 24. Kh1 {[%clk 0:00:07]}  Rg8 {[%clk 0:00:10]} 25. Rde1 {[%clk 0:00:06]}  Nd4 {[%clk 0:00:10]} 26. Nxd4 {[%clk 0:00:06]}  Rfg5 {[%clk 0:00:09]} 27. Re7 {[%clk 0:00:05]}  Qg6 {[%clk 0:00:07]} 28. R1e6 {[%clk 0:00:02]}  Qb1+ {[%clk 0:00:05]} 29. Re1 {[%clk 0:00:02]}  Qg6 {[%clk 0:00:05]} 30. R7e6 {[%clk 0:00:03]}  Qh7 {[%clk 0:00:04]} 31. g3 {[%clk 0:00:02]}  Bb6 {[%clk 0:00:03]} 32. Nf3 {[%clk 0:00:03]}  Rf5 {[%clk 0:00:03]} 33. Rxb6 {[%clk 0:00:03]}  cxb6 {[%clk 0:00:02]} 34. Qd4+ {[%clk 0:00:03]}  Qg7 {[%clk 0:00:02]} 35. Ne5 {[%clk 0:00:04]}  Rf6 {[%clk 0:00:01]} 36. Qd1 {[%clk 0:00:02]}  Qh7 {[%clk 0:00:01]} 37. Qd4 {[%clk 0:00:02]}  Rgf8 {[%clk 0:00:02]} 38. Nd7 {[%clk 0:00:02]}  Qf7 {[%clk 0:00:02]} 39. Nxf6 {[%clk 0:00:03]}  Qxf6 {[%clk 0:00:03]} 40. Qd5 {[%clk 0:00:03]}  Qxf2 {[%clk 0:00:03]} 41. Qxh5+ {[%clk 0:00:04]}  Kg7 {[%clk 0:00:03]} 42. Re7+ {[%clk 0:00:04]}  Rf7 {[%clk 0:00:03]} 43. Qe5+ {[%clk 0:00:04]}  Kg8 {[%clk 0:00:03]} 44. Re8+ {[%clk 0:00:04]}  Rf8 {[%clk 0:00:03]} 45. Qe6+ {[%clk 0:00:04]}  Kg7 {[%clk 0:00:03]} 46. Re7+ {[%clk 0:00:05]}  Rf7 {[%clk 0:00:04]} 47. Rxf7+ {[%clk 0:00:03]}  Qxf7 {[%clk 0:00:05]} 48. Qxf7+ {[%clk 0:00:03]}  Kxf7 {[%clk 0:00:06]} 49. Kg2 {[%clk 0:00:04]}  b5 {[%clk 0:00:06]} 50. Kf3 {[%clk 0:00:04]}  Ke6 {[%clk 0:00:07]} 51. Ke4 {[%clk 0:00:05]}  b4 {[%clk 0:00:07]} 52. Kd4 {[%clk 0:00:05]}  a5 {[%clk 0:00:08]} 53. Kc4 {[%clk 0:00:06]}  b6 {[%clk 0:00:09]} 54. Kb5 {[%clk 0:00:06]}  Ke5 {[%clk 0:00:09]} 55. h4 {[%clk 0:00:06]}  Kf5 {[%clk 0:00:09]} 56. h5 {[%clk 0:00:06]}  Kg5 {[%clk 0:00:09]} 57. g4 {[%clk 0:00:07]}  Kh6 {[%clk 0:00:09]} 58. Ka4 {[%clk 0:00:08]}  Kg5 {[%clk 0:00:09]} 59. Kb5 {[%clk 0:00:08]}  Kh6 {[%clk 0:00:09]} 60. Kc4 {[%clk 0:00:08]}  Kg5 {[%clk 0:00:09]} 61. Kd4 {[%clk 0:00:09]}  Kh6 {[%clk 0:00:09]} 62. Kd5 {[%clk 0:00:09]}  Kg5 {[%clk 0:00:09]} 63. Kd4 {[%clk 0:00:03]}  Kh6 {[%clk 0:00:05]} 64. Kc4 {[%clk 0:00:04]}  Kg5 {[%clk 0:00:05]} 65. Kd3 {[%clk 0:00:03]}  Kh6 {[%clk 0:00:05]} 66. Kd4 {[%clk 0:00:04]}  Kg5 {[%clk 0:00:05]} 67. Kd5 {[%clk 0:00:04]}  Kh6 {[%clk 0:00:05]} 68. Kc4 {[%clk 0:00:05]} 1/2-1/2


[Site "https://www.chess.com"]

[Event "Titled Tuesday Blitz March 01 Early 2022"]
[White "Kouskoutis, Georgios-Alexandros"]
[Black "Dronavalli, Harika"]
[WhiteFideId "4234049"]
[BlackFideId "5015197"]
[WhiteElo "2130"]
[BlackElo "2382"]
[Result "0-1"]
[Round "06"]
[TimeControl "180+1"]
[Date "2022.03.01"]
[WhiteClock "0:00:03"]
[BlackClock "0:00:19"]

1. c4 {[%clk 0:03:00]}  Nf6 {[%clk 0:02:56]} 2. g3 {[%clk 0:03:00]}  g6 {[%clk 0:02:54]} 3. Bg2 {[%clk 0:02:56]}  Bg7 {[%clk 0:02:55]} 4. Nc3 {[%clk 0:02:56]}  O-O {[%clk 0:02:56]} 5. e4 {[%clk 0:02:56]}  d6 {[%clk 0:02:56]} 6. Nge2 {[%clk 0:02:57]}  c5 {[%clk 0:02:54]} 7. O-O {[%clk 0:02:57]}  Nc6 {[%clk 0:02:53]} 8. Rb1 {[%clk 0:02:57]}  Ne8 {[%clk 0:02:52]} 9. d3 {[%clk 0:02:54]}  Nc7 {[%clk 0:02:52]} 10. h3 {[%clk 0:02:51]}  Ne6 {[%clk 0:02:49]} 11. Be3 {[%clk 0:02:45]}  Ned4 {[%clk 0:02:39]} 12. f4 {[%clk 0:02:42]}  Rb8 {[%clk 0:02:33]} 13. a4 {[%clk 0:02:09]}  a6 {[%clk 0:02:32]} 14. Kh2 {[%clk 0:01:59]}  Bd7 {[%clk 0:02:30]} 15. Bf2 {[%clk 0:01:44]}  b5 {[%clk 0:02:28]} 16. axb5 {[%clk 0:01:42]}  axb5 {[%clk 0:02:29]} 17. b3 {[%clk 0:01:36]}  Nxe2 {[%clk 0:01:36]} 18. Nxe2 {[%clk 0:01:35]}  Qa5 {[%clk 0:01:28]} 19. Be1 {[%clk 0:00:42]}  Qc7 {[%clk 0:01:24]} 20. Nc3 {[%clk 0:00:33]}  Nd4 {[%clk 0:01:21]} 21. Bf2 {[%clk 0:00:27]}  e6 {[%clk 0:01:14]} 22. Ne2 {[%clk 0:00:22]}  Nxe2 {[%clk 0:01:10]} 23. Qxe2 {[%clk 0:00:23]}  Ra8 {[%clk 0:01:10]} 24. e5 {[%clk 0:00:18]}  Ra3 {[%clk 0:00:59]} 25. exd6 {[%clk 0:00:16]}  Qxd6 {[%clk 0:00:59]} 26. Rfd1 {[%clk 0:00:17]}  Bc6 {[%clk 0:00:54]} 27. Bxc6 {[%clk 0:00:09]}  Qxc6 {[%clk 0:00:54]} 28. Qe4 {[%clk 0:00:07]}  Qd6 {[%clk 0:00:44]} 29. Kg1 {[%clk 0:00:05]}  Ra2 {[%clk 0:00:42]} 30. cxb5 {[%clk 0:00:04]}  Rfa8 {[%clk 0:00:41]} 31. b4 {[%clk 0:00:03]}  cxb4 {[%clk 0:00:33]} 32. b6 {[%clk 0:00:04]}  Bc3 {[%clk 0:00:27]} 33. b7 {[%clk 0:00:03]}  Rb8 {[%clk 0:00:27]} 34. d4 {[%clk 0:00:02]}  Qc7 {[%clk 0:00:26]} 35. d5 {[%clk 0:00:02]}  Qxb7 {[%clk 0:00:24]} 36. Qc4 {[%clk 0:00:02]}  Qa6 {[%clk 0:00:18]} 37. Qxa6 {[%clk 0:00:01]}  Rxa6 {[%clk 0:00:19]} 38. d6 {[%clk 0:00:02]}  Rd8 {[%clk 0:00:19]} 39. d7 {[%clk 0:00:01]}  Rc6 {[%clk 0:00:13]} 40. g4 {[%clk 0:00:02]}  Rc7 {[%clk 0:00:12]} 41. Bb6 {[%clk 0:00:02]}  Rdxd7 {[%clk 0:00:12]} 42. Bxc7 {[%clk 0:00:02]}  Rxc7 {[%clk 0:00:13]} 43. Rdc1 {[%clk 0:00:03]}  Kg7 {[%clk 0:00:13]} 44. Kf2 {[%clk 0:00:03]}  Rc4 {[%clk 0:00:13]} 45. Kf3 {[%clk 0:00:04]}  Rd4 {[%clk 0:00:13]} 46. Rb3 {[%clk 0:00:03]}  Rd3+ {[%clk 0:00:14]} 47. Kg2 {[%clk 0:00:03]}  h5 {[%clk 0:00:13]} 48. gxh5 {[%clk 0:00:02]}  gxh5 {[%clk 0:00:14]} 49. f5 {[%clk 0:00:02]}  exf5 {[%clk 0:00:14]} 50. Rf1 {[%clk 0:00:02]}  Kg6 {[%clk 0:00:14]} 51. Rbb1 {[%clk 0:00:02]}  h4 {[%clk 0:00:15]} 52. Rf3 {[%clk 0:00:03]}  Rd2+ {[%clk 0:00:15]} 53. Rf2 {[%clk 0:00:03]}  Rd4 {[%clk 0:00:15]} 54. Rf3 {[%clk 0:00:02]}  Rd2+ {[%clk 0:00:15]} 55. Rf2 {[%clk 0:00:03]}  Rd5 {[%clk 0:00:16]} 56. Rf3 {[%clk 0:00:03]}  Kg5 {[%clk 0:00:14]} 57. Rb3 {[%clk 0:00:03]}  f4 {[%clk 0:00:14]} 58. Rfxc3 {[%clk 0:00:03]}  bxc3 {[%clk 0:00:15]} 59. Rxc3 {[%clk 0:00:04]}  Rd2+ {[%clk 0:00:15]} 60. Kf3 {[%clk 0:00:04]}  Rh2 {[%clk 0:00:16]} 61. Ke4 {[%clk 0:00:04]}  f5+ {[%clk 0:00:15]} 62. Ke5 {[%clk 0:00:04]}  Re2+ {[%clk 0:00:15]} 63. Kd4 {[%clk 0:00:03]}  Re4+ {[%clk 0:00:14]} 64. Kd5 {[%clk 0:00:03]}  Re3 {[%clk 0:00:14]} 65. Rc8 {[%clk 0:00:03]}  Rxh3 {[%clk 0:00:14]} 66. Rg8+ {[%clk 0:00:04]}  Kh5 {[%clk 0:00:14]} 67. Ke5 {[%clk 0:00:04]}  Rg3 {[%clk 0:00:15]} 68. Rh8+ {[%clk 0:00:03]}  Kg4 {[%clk 0:00:15]} 69. Rg8+ {[%clk 0:00:02]}  Kf3 {[%clk 0:00:16]} 70. Rh8 {[%clk 0:00:03]}  h3 {[%clk 0:00:16]} 71. Kxf5 {[%clk 0:00:03]}  Kg2 {[%clk 0:00:17]} 72. Kxf4 {[%clk 0:00:04]}  h2 {[%clk 0:00:17]} 73. Rh4 {[%clk 0:00:03]}  Rf3+ {[%clk 0:00:17]} 74. Kg4 {[%clk 0:00:03]}  Rg3+ {[%clk 0:00:18]} 75. Kf4 {[%clk 0:00:03]}  Rh3 {[%clk 0:00:18]} 76. Rg4+ {[%clk 0:00:03]}  Kf2 {[%clk 0:00:19]} 0-1


[Site "https://www.chess.com"]